fUST/lending_fUST_20250306
["ID","MTS","AMOUNT","RATE_DAILY","PERIOD"]
[355505408,1741207854621,-26395.19,0.00043013,7]
[355505410,1741207854630,-1720.33,0.00043013,120]
[355505412,1741207854640,-500.0,0.00043013,120]
[355505414,1741207854649,-905.36,0.00043013,120]
[355505416,1741207854659,-629.3,0.00043013,120]
[355505418,1741207854669,-520.64,0.00043013,120]
[355505420,1741207854678,-634.73,0.00043013,120]
[355505422,1741207854689,-667.75,0.00043013,120]
[355505424,1741207854699,-2881.98,0.00043013,30]
[355505426,1741207854708,-749.96,0.00043013,120]
[355505428,1741207854717,-4449.63,0.00043013,120]
[355505430,1741207854727,-2459.83,0.00043013,120]
[355505432,1741207854736,-1000.0,0.00043055,10]
[355505434,1741207854749,-1000.0,0.00043192,10]
[355505436,1741207854758,-151.807077,0.00043287,120]
[355505438,1741207854768,-500.0,0.00043287,120]
[355505440,1741207854777,-550.5,0.00043287,120]
[355505443,1741207854789,-500.0,0.00043287,120]
[355505444,1741207854800,-270.9,0.00043287,120]
[355505446,1741207854809,-500.0,0.00043287,120]
[355505449,1741207854820,-151.0,0.00043287,120]
[355505450,1741207854829,-151.0,0.00043287,120]
[355505452,1741207854839,-1798.42,0.00043287,120]
[355505454,1741207854848,-509.48,0.00043287,120]
[355505456,1741207854857,-999.0,0.00043287,120]
[355505458,1741207854866,-592.27,0.00043287,120]
[355505460,1741207854875,-1970.49,0.00043287,120]
[355505462,1741207854885,-500.0,0.00043287,120]
[355505464,1741207854898,-500.0,0.00043287,120]
[355505466,1741207854907,-500.0,0.00043287,120]
[355505469,1741207854917,-1707.61,0.00043287,120]
[355505470,1741207854926,-1509.18,0.00043287,120]
[355505472,1741207854935,-3741.97,0.00043287,120]
[355505474,1741207854945,-1075.02,0.00043287,120]
[355505476,1741207854954,-1124.74,0.00043287,120]
[355505478,1741207854964,-26395.19,0.00043287,7]
[355505480,1741207854973,-1720.33,0.00043287,120]
[355505482,1741207854983,-500.0,0.00043287,120]
[355505484,1741207854992,-905.36,0.00043287,120]
[355505486,1741207855001,-629.3,0.00043287,120]
[355505488,1741207855011,-520.64,0.00043287,120]
[355505490,1741207855023,-634.73,0.00043287,120]
[355505492,1741207855033,-667.75,0.00043287,120]
[355505494,1741207855042,-2881.98,0.00043287,30]
[355505496,1741207855051,-749.96,0.00043287,120]
[355505498,1741207855060,-4449.63,0.00043287,120]
[355505500,1741207855070,-2459.83,0.00043287,120]
[355505502,1741207855079,-1000.0,0.00043329,10]
[355505504,1741207855089,-1000.0,0.00043466,10]
[355505507,1741207855099,-191.66699791,0.00043561,120]
[355505509,1741207855109,-550.5,0.00043561,120]
[355505510,1741207855118,-500.0,0.00043561,120]
[355505513,1741207855128,-500.0,0.00043561,120]
[355505515,1741207855138,-1798.42,0.00043561,120]
[355505517,1741207855148,-509.48,0.00043561,120]
[355505518,1741207855157,-1970.49,0.00043561,120]
[355505531,1741207855270,-500.0,0.00043561,120]
[355505534,1741207855280,-500.0,0.00043561,120]
[355505535,1741207855290,-500.0,0.00043561,120]
[355505537,1741207855299,-1707.61,0.00043561,120]
[355505540,1741207855308,-1509.18,0.00043561,120]
[355505542,1741207855318,-3741.97,0.00043561,120]
[355505544,1741207855328,-1075.02,0.00043561,120]
[355505546,1741207855338,-1124.74,0.00043561,120]
[355505548,1741207855347,-26395.19,0.00043561,7]
[355505550,1741207855357,-1720.33,0.00043561,120]
[355505551,1741207855366,-500.0,0.00043561,120]
[355505553,1741207855375,-905.36,0.00043561,120]
[355505555,1741207855385,-629.3,0.00043561,120]
[355505557,1741207855394,-520.64,0.00043561,120]
[355505560,1741207855403,-634.73,0.00043561,120]
[355505562,1741207855413,-667.75,0.00043561,120]
[355505563,1741207855422,-2881.98,0.00043561,30]
[355505565,1741207855432,-749.96,0.00043561,120]
[355505567,1741207855441,-4449.63,0.00043561,120]
[355505569,1741207855451,-2459.83,0.00043561,120]
[355505571,1741207855460,-200.0,0.000436,120]
[355505573,1741207855470,-1000.0,0.00043603,10]
[355505576,1741207855479,-216.89,0.00043735,30]
[355505577,1741207855489,-1000.0,0.0004374,10]
[355505580,1741207855499,-550.5,0.00043835,120]
[355505581,1741207855508,-174.35,0.00043835,120]
[355505584,1741207855519,-500.0,0.00043835,120]
[355505585,1741207855529,-1798.42,0.00043835,120]
[355505587,1741207855539,-509.48,0.00043835,120]
[355505590,1741207855548,-999.0,0.00043835,120]
[355505592,1741207855558,-1970.49,0.00043835,120]
[355505594,1741207855567,-500.0,0.00043835,120]
[355505596,1741207855578,-416.35,0.00043835,120]
[355505598,1741207855587,-318.04331058,0.00043835,120]
[355505599,1741207855596,-1707.61,0.00043835,120]
[355505601,1741207855606,-1509.18,0.00043835,120]
[355505604,1741207855616,-3741.97,0.00043835,120]
[355505606,1741207855626,-1075.02,0.00043835,120]
[355505608,1741207855635,-1124.74,0.00043835,120]
[355505609,1741207855645,-26395.19,0.00043835,7]
[355505611,1741207855654,-1720.33,0.00043835,120]
[355505613,1741207855664,-500.0,0.00043835,120]
[355505615,1741207855673,-905.36,0.00043835,120]
[355505617,1741207855683,-629.3,0.00043835,120]
[355505619,1741207855692,-520.64,0.00043835,120]
[355505621,1741207855702,-634.73,0.00043835,120]
[355505623,1741207855712,-667.75,0.00043835,120]
[355505625,1741207855721,-2881.98,0.00043835,30]
[355505627,1741207855731,-749.96,0.00043835,120]
[355505629,1741207855741,-4449.63,0.00043835,120]
[355505631,1741207855755,-2459.83,0.00043835,120]
[355505633,1741207855765,-1000.0,0.00043852,10]
[355505635,1741207855776,-500.0,0.00043852,10]
[355505638,1741207855788,-1000.0,0.00043852,10]
[355505640,1741207855797,-1000.0,0.00043852,10]
[355505641,1741207855807,-1000.0,0.00043852,10]
[355505643,1741207855816,-1000.0,0.00043852,10]
[355505645,1741207855825,-1000.0,0.00043877,10]
[355505647,1741207855835,-269.3,0.000439,30]
[355505649,1741207855844,-155.7,0.000439,30]
[355505651,1741207855854,-1042.72765168,0.00044,120]
[355505653,1741207855863,-378.0,0.00044,120]
[355505655,1741207855872,-378.0,0.00044,120]
[355505657,1741207855881,-151.0,0.00044109,120]
[355505659,1741207855890,-550.5,0.00044109,120]
[355505661,1741207855899,-500.0,0.00044109,120]
[355505663,1741207855910,-1798.42,0.00044109,120]
[355505665,1741207855920,-509.48,0.00044109,120]
[355505667,1741207855929,-178.212424,0.00044109,120]
[355505669,1741207855939,-151.0,0.00044109,120]
[355505671,1741207855948,-1970.49,0.00044109,120]
[355505673,1741207855956,-151.0,0.00044109,14]
[355505675,1741207855966,-500.0,0.00044109,120]
[355505677,1741207855975,-1707.61,0.00044109,120]
[355505679,1741207855984,-1509.18,0.00044109,120]
[355505681,1741207855994,-151.0,0.00044109,120]
[355505683,1741207856003,-3741.97,0.00044109,120]
[355505685,1741207856013,-1075.02,0.00044109,120]
[355505687,1741207856022,-1124.74,0.00044109,120]
[355505689,1741207856032,-26395.19,0.00044109,7]
[355505691,1741207856041,-1720.33,0.00044109,120]
[355505693,1741207856051,-500.0,0.00044109,120]
[355505695,1741207856060,-905.36,0.00044109,120]
[355505697,1741207856070,-629.3,0.00044109,120]
[355505699,1741207856079,-520.64,0.00044109,120]
[355505701,1741207856088,-634.73,0.00044109,120]
[355505703,1741207856098,-218.192164,0.00044109,120]
[355505705,1741207856108,-218.192164,0.00044109,120]
[355505707,1741207856119,-667.75,0.00044109,120]
[355505709,1741207856130,-2881.98,0.00044109,30]
[355505711,1741207856140,-169.050235,0.00044109,120]
[355505713,1741207856149,-749.96,0.00044109,120]
[355505715,1741207856158,-169.050235,0.00044109,120]
[355505717,1741207856168,-4449.63,0.00044109,120]
[355505719,1741207856177,-2459.83,0.00044109,120]
[355505721,1741207856186,-1257.71290333,0.00044229,28]
[355505723,1741207856196,-550.5,0.00044383,120]
[355505725,1741207856206,-229.59268828,0.00044383,120]
[355505727,1741207856215,-151.0,0.00044383,120]
[355505729,1741207856224,-1798.42,0.00044383,120]
[355505731,1741207856234,-509.48,0.00044383,120]
[355505733,1741207856243,-370.14,0.00044383,120]
[355505735,1741207856252,-1970.49,0.00044383,120]
[355505737,1741207856262,-507.27,0.00044383,120]
[355505739,1741207856273,-1707.61,0.00044383,120]
[355505741,1741207856282,-1509.18,0.00044383,120]
[355505743,1741207856292,-3741.97,0.00044383,120]
[355505744,1741207856301,-1075.02,0.00044383,120]
[355505745,1741207856309,-1124.74,0.00044383,120]
[355505746,1741207856319,-26395.19,0.00044383,7]
[355505747,1741207856328,-1720.33,0.00044383,120]
[355505748,1741207856338,-500.0,0.00044383,120]
[355505749,1741207856348,-905.36,0.00044383,120]
[355505750,1741207856358,-629.3,0.00044383,120]
[355505751,1741207856367,-520.64,0.00044383,120]
[355505752,1741207856377,-634.73,0.00044383,120]
[355505753,1741207856387,-667.75,0.00044383,120]
[355505754,1741207856397,-2881.98,0.00044383,30]
[355505755,1741207856408,-749.96,0.00044383,120]
[355505756,1741207856418,-4449.63,0.00044383,120]
[355505757,1741207856428,-2459.83,0.00044383,120]
[355505758,1741207856437,-300.0,0.000445,23]
[355505759,1741207856447,-153.48,0.000445,36]
[355505760,1741207856456,-153.48,0.000445,36]
[355505761,1741207856465,-153.48,0.000445,36]
[355505762,1741207856475,-153.48,0.000445,36]
[355505763,1741207856484,-153.48,0.000445,36]
[355505764,1741207856493,-153.48,0.000445,36]
[355505765,1741207856502,-153.48,0.000445,36]
[355505766,1741207856512,-153.48,0.000445,36]
[355505767,1741207856522,-153.48,0.000445,36]
[355505768,1741207856532,-153.48,0.000445,36]
[355505769,1741207856543,-153.48,0.000445,36]
[355505770,1741207856553,-153.48,0.000445,36]
[355505771,1741207856562,-550.58763951,0.00044657,120]
[355505772,1741207856572,-151.0,0.00044657,120]
[355505773,1741207856582,-1798.62865964,0.00044657,120]
[355505774,1741207856592,-509.61,0.00044657,120]
[355505775,1741207856602,-1970.66524935,0.00044657,120]
[355505776,1741207856611,-1707.65655446,0.00044657,120]
[355505777,1741207856620,-1509.24719003,0.00044657,120]
[355505778,1741207856630,-3742.09720823,0.00044657,120]
[355505779,1741207856639,-1075.25882302,0.00044657,120]
[355505780,1741207856649,-1124.9671181,0.00044657,120]
[355505781,1741207856658,-26395.25002635,0.00044657,7]
[355505782,1741207856668,-1720.40729229,0.00044657,120]
[355505783,1741207856677,-214.72161724,0.00044657,120]
[355505784,1741207856687,-905.48301385,0.00044657,120]
[355505785,1741207856696,-629.31749846,0.00044657,120]
[355505786,1741207856706,-520.86,0.00044657,120]
[355505787,1741207856715,-634.82456849,0.00044657,120]
[355505788,1741207856725,-667.79450359,0.00044657,120]
[355505789,1741207856735,-2882.05391345,0.00044657,30]
[355505790,1741207856749,-750.07376715,0.00044657,120]
[355505791,1741207856758,-4449.67044607,0.00044657,120]
[355505792,1741207856767,-2459.96530274,0.00044657,120]
[355505793,1741207856777,-500.0,0.00044714,16]
[355505794,1741207856787,-216.89,0.00045104,30]
[355505795,1741207856796,-160.0,0.00045499,4]
[355505796,1741207856806,-1000.0,0.00045658,10]
[355505798,1741207856816,-1000.0,0.00045795,10]
[355505800,1741207856828,-200.0,0.000458,120]
[355505801,1741207856837,-1000.0,0.00045932,10]
[355505802,1741207856846,-172.7727069,0.00045973,120]
[355505803,1741207856855,-511.571145,0.00046,24]
[355505804,1741207856864,-378.0,0.00046,120]
[355505805,1741207856875,-378.0,0.00046,120]
[355505806,1741207856884,-1000.0,0.00046068,10]
[355505807,1741207856894,-501.5318523,0.00046156,2]
[355505808,1741207856903,-269.3,0.000462,30]
[355505809,1741207856913,-155.7,0.000462,30]
[355505810,1741207856923,-153.48,0.000462,39]
[355505811,1741207856933,-153.48,0.000462,39]
[355505812,1741207856942,-153.48,0.000462,39]
[355505813,1741207856951,-153.48,0.000462,39]
[355505814,1741207856961,-153.48,0.000462,39]
[355505815,1741207856970,-153.48,0.000462,39]
[355505816,1741207856980,-153.48,0.000462,39]
[355505817,1741207856989,-153.48,0.000462,39]
[355505818,1741207856998,-153.48,0.000462,39]
[355505819,1741207857008,-153.48,0.000462,39]
[355505820,1741207857018,-153.48,0.000462,39]
[355505821,1741207857027,-153.48,0.000462,39]
[355505822,1741207857036,-1000.0,0.00046205,10]
[355505823,1741207857046,-1000.0,0.00046342,10]
[355505824,1741207857055,-216.89,0.00046474,30]
[355505825,1741207857065,-1000.0,0.00046479,10]
[355505826,1741207857074,-358.234473,0.00046532,2]
[355505827,1741207857084,-151.0,0.00046575,120]
[355505828,1741207857094,-151.0,0.00046575,120]
[355505829,1741207857103,-168.59881807,0.00046575,120]
[355505830,1741207857113,-172.7727069,0.00046575,120]
[355505831,1741207857122,-10000.0,0.00046575,120]
[355505832,1741207857132,-10000.0,0.00046575,120]
[355505833,1741207857141,-10000.0,0.00046575,120]
[355505834,1741207857151,-10000.0,0.00046575,120]
[355505835,1741207857160,-10000.0,0.00046575,120]
[355505836,1741207857170,-10000.0,0.00046575,120]
[355505837,1741207857179,-10000.0,0.00046575,120]
[355505839,1741207857188,-10000.0,0.00046575,120]
[355505841,1741207857197,-10000.0,0.00046575,120]
[355505843,1741207857207,-6287.854153,0.00046575,120]
[355505845,1741207857216,-150.0,0.00046575,10]
[355505847,1741207857225,-618.014595,0.000466,93]
[355505849,1741207857235,-500.0,0.000467,94]
[355505850,1741207857244,-500.0,0.000468,95]
[355505852,1741207857253,-500.0,0.000469,96]
[355505854,1741207857262,-168.0,0.00047,90]
[355505856,1741207857272,-250.0,0.00047123,10]
[355505858,1741207857282,-168.59881807,0.00047205,120]
[355505859,1741207857291,-172.7727069,0.00047205,120]
[355505861,1741207857300,-1257.71290333,0.00047343,28]
[355505862,1741207857310,-200.0,0.00047367,120]
[355505863,1741207857320,-600.0,0.00047391,2]
[355505864,1741207857330,-220.2155395,0.00047411,4]
[355505865,1741207857339,-452.35622534,0.00047671,10]
[355505866,1741207857348,-168.59881807,0.00047808,120]
[355505867,1741207857358,-172.7727069,0.00047808,120]
[355505868,1741207857367,-216.89,0.00047844,30]
[355505869,1741207857377,-600.0,0.00047885,2]
[355505871,1741207857386,-153.48,0.000479,42]
[355505872,1741207857395,-153.48,0.000479,42]
[355505873,1741207857404,-153.48,0.000479,42]
[355505874,1741207857414,-153.48,0.000479,42]
[355505875,1741207857423,-153.48,0.000479,42]
[355505876,1741207857431,-153.48,0.000479,42]
[355505877,1741207857441,-153.48,0.000479,42]
[355505878,1741207857450,-153.48,0.000479,42]
[355505879,1741207857459,-153.48,0.000479,42]
[355505880,1741207857468,-153.48,0.000479,42]
[355505881,1741207857478,-153.48,0.000479,42]
[355505882,1741207857488,-153.48,0.000479,42]
[355505883,1741207857497,-378.0,0.00048,120]
[355505884,1741207857507,-378.0,0.00048,120]
[355505885,1741207857516,-10000.0,0.00048,2]
[355505886,1741207857526,-381.38842,0.00048,120]
[355505887,1741207857535,-500.0,0.00048089,98]
[355505888,1741207857545,-200.0,0.00048138,120]
[355505889,1741207857554,-500.0,0.00048189,94]
[355505890,1741207857564,-1114.377424,0.00048195,30]
[355505891,1741207857574,-800.0,0.00048242,14]
[355505892,1741207857583,-800.0,0.00048244,14]
[355505893,1741207857593,-800.0,0.00048264,14]
[355505894,1741207857602,-800.0,0.00048279,14]
[355505895,1741207857611,-500.0,0.00048289,92]
[355505896,1741207857621,-800.0,0.00048307,14]
[355505897,1741207857632,-800.0,0.00048311,14]
[355505898,1741207857642,-800.0,0.00048343,14]
[355505899,1741207857652,-800.0,0.00048344,14]
[355505900,1741207857662,-356.1632692,0.00048359,30]
[355505901,1741207857671,-356.1632692,0.00048359,30]
[355505902,1741207857681,-354.9944322,0.00048359,30]
[355505903,1741207857691,-653.64747073,0.00048363,14]
[355505904,1741207857700,-800.0,0.00048371,14]
[355505905,1741207857710,-600.0,0.00048379,2]
[355505906,1741207857719,-500.0,0.00048389,94]
[355505907,1741207857729,-800.0,0.00048457,14]
[355505908,1741207857739,-800.0,0.00048464,14]
[355505909,1741207857755,-800.0,0.00048471,14]
[355505910,1741207857766,-800.0,0.00048479,14]
[355505911,1741207857777,-500.0,0.00048489,98]
[355505912,1741207857786,-1000.0,0.00048499,120]
[355505913,1741207857798,-10000.0,0.00048499,30]
[355505914,1741207857807,-150.0,0.000485,120]
[355505915,1741207857817,-150.0,0.000485,120]
[355505916,1741207857827,-160.0,0.00048543,5]
[355505917,1741207857836,-200.0,0.0004855,120]
[355505918,1741207857846,-500.0,0.00048589,95]
[355505919,1741207857855,-200.0,0.0004861,120]
[355505920,1741207857864,-22785.85164784,0.00048683,30]
[355505921,1741207857874,-500.0,0.00048689,94]
[355505930,1741207857983,-1671.25,0.000487,2]
[355505932,1741207857993,-250.7355,0.0004875,120]
[355505933,1741207858002,-2000.0,0.00048767,120]
[355505934,1741207858012,-1000.0,0.00048767,120]
[355505935,1741207858022,-1000.0,0.00048767,120]
[355505936,1741207858032,-1000.0,0.00048767,120]
[355505937,1741207858042,-1000.0,0.00048767,120]
[355505938,1741207858052,-1000.0,0.00048767,120]
[355505939,1741207858062,-1000.0,0.00048767,120]
[355505940,1741207858071,-1000.0,0.00048767,120]
[355505941,1741207858081,-198.26437965,0.00048767,120]
[355505942,1741207858090,-200.0,0.00048768,120]
[355505943,1741207858100,-500.0,0.00048789,96]
[355505944,1741207858109,-312.14691694,0.000488,120]
[355505945,1741207858118,-131229.33634677,0.000488,120]
[355505946,1741207858128,-4168.09,0.000488,30]
[355505947,1741207858138,-151.0,0.000488,120]
[355505948,1741207858147,-151.0,0.000488,14]
[355505949,1741207858157,-151.0,0.000488,120]
[355505950,1741207858167,-10000.0,0.000488,120]
[355505951,1741207858176,-10000.0,0.000488,120]
[355505952,1741207858185,-218.192164,0.000488,120]
[355505953,1741207858194,-218.192164,0.000488,120]
[355505954,1741207858204,-169.050235,0.000488,120]
[355505955,1741207858213,-169.050235,0.000488,120]
[355505956,1741207858222,-153.0,0.00048862,30]
[355505957,1741207858231,-153.0,0.00048862,30]
[355505958,1741207858240,-153.0,0.00048862,30]
[355505959,1741207858250,-153.0,0.00048862,30]
[355505960,1741207858259,-600.0,0.00048872,2]
[355505961,1741207858269,-500.0,0.00048889,92]
[355505962,1741207858278,-914.56648218,0.000489,120]
[355505963,1741207858287,-168.0,0.00048904,90]
[355505964,1741207858297,-200.0,0.00048951,120]
[355505965,1741207858306,-500.0,0.0004898,30]
[355505966,1741207858315,-500.0,0.00048989,98]
[355505967,1741207858324,-1000.0,0.00049,2]
[355505968,1741207858334,-200.000001,0.00049,7]
[355505969,1741207858343,-2043.08,0.00049,120]
[355505970,1741207858352,-8717.61271469,0.00049,30]
[355505971,1741207858361,-387.51196705,0.00049,120]
[355505972,1741207858370,-305.36543835,0.00049,15]
[355505973,1741207858379,-10000.0,0.00049,120]
[355505974,1741207858389,-159.30943099,0.00049,2]
[355505975,1741207858398,-2026122.26882409,0.00049,90]
[355505976,1741207858487,-677.95,0.00041095,120]
[355505977,1741207858497,-229.04969397,0.00049,90]
[355505978,1741207858509,-2738.30158483,0.00049,90]
[355505985,1741207858713,-502.21391993,0.00038356,9]
[355505986,1741207858723,-500.0,0.00038356,9]
[355505987,1741207858732,-500.0,0.00038373,5]
[355505988,1741207858741,-879.77547357,0.000389,8]
[355505989,1741207858755,-677.95,0.00041369,120]
[355505990,1741207858764,-677.95,0.00041643,120]
[355505991,1741207858776,-677.95,0.00041917,120]
[355505992,1741207858787,-677.95,0.00042191,120]
[355505993,1741207858796,-677.95,0.00042465,120]
[355505994,1741207858806,-677.95,0.00042739,120]
[355505995,1741207858815,-677.95,0.00043013,120]
[355505996,1741207858825,-677.95,0.00043287,120]
[355505997,1741207858835,-677.95,0.00043561,120]
[355505998,1741207858844,-677.95,0.00043835,120]
[355505999,1741207858854,-1000.0,0.00043852,10]
[355506000,1741207858863,-677.95,0.00044109,120]
[355506001,1741207858873,-677.95,0.00044383,120]
[355506002,1741207858882,-678.18734757,0.00044657,120]
[355506003,1741207858891,-7693.43620193,0.00049,90]
[355506005,1741207859094,-500.0,0.00038356,9]
[355506006,1741207859103,-500.0,0.0003863,9]
[355506007,1741207859113,-500.0,0.00038904,9]
[355506008,1741207859122,-500.0,0.00039178,9]
[355506010,1741207859131,-500.0,0.00039452,9]
[355506012,1741207859141,-500.0,0.00039726,9]
[355506013,1741207859150,-29219.43944731,0.00049,90]
[355506033,1741208955122,-323.952594,0.0003589,2]
[355506034,1741208955143,-188.62643235,0.00037955,108]
[355506035,1741208955165,-330.30066364,0.00038,2]
[355506078,1741209038063,-298.55578806,0.00038,2]
[355506080,1741209038073,-629.64,0.00038046,3]
[355506082,1741209038083,-500.0,0.00038055,15]
[355506084,1741209038092,-71.80421194,0.00038055,15]
[355506086,1741209038105,-286.03365241,0.00038055,15]
[355506087,1741209038118,-142.16213565,0.00038055,15]
[355506088,1741209038129,-500.0,0.00038055,15]
[355506089,1741209038140,-500.0,0.00038055,15]
[355506090,1741209038150,-500.0,0.00038055,15]
[355506091,1741209038162,-500.0,0.00038055,15]
[355506092,1741209038172,-500.0,0.00038055,15]
[355506093,1741209038181,-500.0,0.00038055,15]
[355506094,1741209038191,-244.66701649,0.00038055,15]
[355506095,1741209038201,-500.0,0.00038055,15]
[355506096,1741209038211,-304.84431863,0.00038055,15]
[355506097,1741209038365,-500.0,0.00038055,2]
[355506098,1741209038375,-500.0,0.00038055,2]
[355506099,1741209038386,-500.0,0.00038055,2]
[355506100,1741209038397,-300.0,0.00038055,2]
[355506101,1741209038408,-191.62,0.00038055,2]
[355506102,1741209038417,-222000.0,0.00038056,2]
[355506103,1741209038427,-500.0,0.00038073,5]
[355506104,1741209038437,-500.0,0.00038073,5]
[355506105,1741209038446,-487.15,0.000381,30]
[355506106,1741209038456,-317.16,0.000381,30]
[355506107,1741209038466,-3000.0,0.00038256,2]
[355506108,1741209038475,-500.0,0.00038356,9]
[355506109,1741209038484,-500.0,0.00038356,9]
[355506110,1741209038494,-500.0,0.00038356,9]
[355506111,1741209038503,-500.0,0.00038356,9]
[355506112,1741209038512,-505.29928515,0.00038356,9]
[355506113,1741209038522,-500.0,0.00038356,9]
[355506114,1741209038533,-349.38260494,0.00038356,9]
[355506115,1741209038542,-505.22408035,0.00038356,9]
[355506116,1741209038552,-500.0,0.00038356,9]
[355506117,1741209038562,-648.47567929,0.00038356,9]
[355506118,1741209038574,-390.02109217,0.00038356,9]
[355506119,1741209038584,-500.0,0.00038356,9]
[355506120,1741209038594,-502.2918879,0.00038356,9]
[355506121,1741209038603,-500.0,0.00038356,9]
[355506122,1741209038612,-500.0,0.00038356,9]
[355506123,1741209038622,-536.87824308,0.00038356,9]
[355506124,1741209038631,-500.0,0.00038356,9]
[355506125,1741209038640,-500.0,0.00038356,9]
[355506126,1741209038650,-500.0,0.00038356,9]
[355506127,1741209038659,-500.0,0.00038356,9]
[355506128,1741209038669,-500.0,0.00038356,9]
[355506129,1741209038678,-212.28679756,0.00038356,9]
[355506130,1741209038689,-500.0,0.00038356,9]
[355506131,1741209038700,-500.0,0.00038356,9]
[355506132,1741209038709,-500.0,0.00038356,9]
[355506133,1741209038719,-500.0,0.00038356,9]
[355506134,1741209038730,-504.85940419,0.00038356,9]
[355506135,1741209038741,-500.0,0.00038356,9]
[355506136,1741209038752,-500.0,0.00038356,9]
[355506137,1741209038762,-500.0,0.00038356,9]
[355506138,1741209038773,-500.0,0.00038356,9]
[355506139,1741209038784,-511.5,0.00038356,9]
[355506140,1741209038794,-500.0,0.00038356,9]
[355506141,1741209038803,-500.0,0.00038356,9]
[355506142,1741209038814,-500.0,0.00038356,9]
[355506143,1741209038825,-500.0,0.00038356,9]
[355506144,1741209038834,-500.0,0.00038356,9]
[355506145,1741209038843,-500.0,0.00038356,9]
[355506146,1741209038853,-500.0,0.00038356,9]
[355506147,1741209038862,-500.0,0.00038356,9]
[355506148,1741209038871,-240.12177285,0.00038356,9]
[355506149,1741209038882,-500.0,0.00038356,9]
[355506150,1741209038891,-500.0,0.00038356,9]
[355506151,1741209038901,-222.91349804,0.00038356,9]
[355506152,1741209038911,-500.0,0.00038356,9]
[355506153,1741209038920,-500.0,0.00038356,9]
[355506154,1741209038929,-500.0,0.00038356,9]
[355506155,1741209038939,-500.0,0.00038356,9]
[355506156,1741209038948,-500.0,0.00038356,9]
[355506157,1741209038958,-500.0,0.00038356,9]
[355506158,1741209038967,-500.0,0.00038356,9]
[355506159,1741209038976,-500.0,0.00038356,9]
[355506160,1741209038986,-500.0,0.00038356,9]
[355506161,1741209038995,-500.0,0.00038356,9]
[355506162,1741209039005,-508.32115011,0.00038356,9]
[355506163,1741209039014,-500.0,0.00038356,9]
[355506164,1741209039023,-201.60055991,0.00038356,9]
[355506165,1741209039033,-500.0,0.00038356,9]
[355506166,1741209039042,-500.0,0.00038356,9]
[355506167,1741209039051,-500.0,0.00038356,9]
[355506168,1741209039061,-500.0,0.00038356,9]
[355506169,1741209039071,-526.31,0.00038356,9]
[355506170,1741209039081,-500.0,0.00038356,9]
[355506171,1741209039090,-1118.08,0.00038356,7]
[355506172,1741209039099,-500.0,0.00038356,9]
[355506173,1741209039109,-500.0,0.00038356,9]
[355506174,1741209039121,-549.64,0.00038356,9]
[355506175,1741209039130,-500.0,0.00038356,9]
[355506176,1741209039141,-500.0,0.00038356,9]
[355506177,1741209039151,-501.91662596,0.00038356,9]